bitfinex/quotes_SOLUSD_20220311
["timestamp","ask_amount","ask_price","bid_price","bid_amount"]
[1647015381666,18.5462,80.91,80.799,18.6427]
[1647015381870,18.5462,80.91,80.83,59.19410632]
[1647015382068,32.9662,80.91,80.83,59.19410632]
[1647015382666,122.5,80.909,80.83,59.19410632]
[1647015382866,18.5508,80.89,80.83,77.74670632]
[1647015383269,18.5508,80.89,80.83,18.5526]
[1647015383469,122.5,80.889,80.829,48.2072]
[1647015383668,122.5,80.889,80.802,24.4303]
[1647015383871,18.5596,80.87,80.803,46.1882]
[1647015384365,18.5596,80.87,80.804,56.46347161]
[1647015384967,73.46,80.869,80.803,46.1882]
[1647015385166,195.96,80.868,80.803,46.1882]
[1647015385367,122.5,80.859,80.803,46.1882]
[1647015385967,122.5,80.847,80.779,3.04447957]
[1647015386168,3.04447957,80.858,80.779,3.04447957]
[1647015386367,18.5654,80.84,80.779,3.04447957]
[1647015386566,18.5654,80.84,80.776,18.4781]
[1647015386770,18.5654,80.84,80.77,3.04447957]
[1647015387171,23.7178,80.858,80.77,3.04447957]
[1647015387369,23.7178,80.858,80.771,85.61482457]
[1647015387769,23.7178,80.858,80.772,3.04447957]
[1647015387969,23.7178,80.858,80.773,24.4188]
[1647015388170,23.7178,80.858,80.78,61.8621]
[1647015388369,18.5605,80.85,80.785,61.93412334]
[1647015389171,18.5605,80.85,80.786,3.04447957]
[1647015389372,4.99666957,80.999,80.786,3.04447957]
[1647015389570,14.42,80.87,80.786,3.04447957]
[1647015389774,18.5582,80.86,80.786,3.04447957]
[1647015389970,32.9782,80.86,80.786,3.04447957]
[1647015390372,73.46,80.838,80.753,24.65749255]
[1647015390572,14.42,80.84,80.74,22.5553]
[1647015390771,14.42,80.84,80.763,22.8192]
[1647015391175,14.42,80.84,80.764,3.04447957]
[1647015391372,49.2970701,80.858,80.764,3.04447957]
[1647015391373,23.0054,80.858,80.764,3.04447957]
[1647015391579,14.42,80.88,80.811,60.80569589]
[1647015391774,14.42,80.89,80.811,60.80569589]
[1647015391976,27.27795209,80.9,80.812,3.04447957]
[1647015392175,27.27795209,80.9,80.812,50.00057957]
[1647015392381,195.96,80.899,80.812,50.00057957]
[1647015392579,199.00447957,80.899,80.813,3.04447957]
[1647015392777,195.96,80.897,80.812,46.9561]
[1647015393178,195.96,80.895,80.812,46.9561]
[1647015393387,122.5,80.879,80.812,46.9561]
[1647015393781,122.5,80.867,80.74,14.42]
[1647015393983,122.5,80.857,80.767,46.9561]
[1647015394180,122.5,80.847,80.767,46.9561]
[1647015395304,122.5,80.843,80.747,76.4159]
[1647015395508,122.5,80.825,80.737,12.86074268]
[1647015395703,73.46,80.828,80.733,52.58162603]
[1647015395903,14.42,80.83,80.738,3.04447957]
[1647015396705,73.46,80.829,80.76,18.5681]
[1647015396903,32.9869,80.83,80.738,3.04447957]
[1647015396904,195.96,80.828,80.738,3.04447957]
[1647015397507,3.04447957,80.827,80.732,48.8083]
[1647015397805,195.96,80.819,80.741,49.43758231]
[1647015398206,14.42,80.82,80.741,49.43758231]
[1647015398407,27.59107957,80.845,80.742,3.04447957]
[1647015398706,14.42,80.84,80.744,122.5]
[1647015398906,15.84835186,80.861,80.744,122.5]
[1647015398907,3.04447957,80.86,80.745,4.88546271]
[1647015399106,23.4256,80.87,80.746,122.75]
[1647015399306,23.4256,80.87,80.751,122.5]
[1647015399307,122.5,80.867,80.751,122.5]
[1647015399507,122.5,80.867,80.752,0.25]
[1647015399706,23.4256,80.87,80.754,5.56500928]
[1647015399908,41.9821,80.87,80.81,18.5569]
[1647015400112,73.46,80.868,80.757,72.0549]
[1647015400307,122.5,80.867,80.758,0.25]
[1647015400508,122.5,80.865,80.758,3.04447957]
[1647015400707,3.04447957,80.866,80.758,3.04447957]
[1647015400908,3.04447957,80.866,80.759,27.29827957]
[1647015401107,14.42,80.87,80.761,122.5]
[1647015401307,14.42,80.87,80.762,0.25]
[1647015401509,14.42,80.87,80.762,3.29447957]
[1647015402008,122.5,80.867,80.81,18.5569]
[1647015402417,32.9759,80.87,80.81,18.5569]
[1647015403022,14.42,80.89,80.81,18.5569]
[1647015403420,14.42,80.89,80.811,3.04447957]
[1647015403624,14.42,80.91,80.83,18.5495]
[1647015403818,14.42,80.91,80.831,61.35123543]
[1647015404218,48.9265,80.926,80.831,64.395715]
[1647015404418,14.42,80.93,80.832,3.04447957]
[1647015404618,14.42,80.94,80.832,125.54447957]
[1647015405018,14.42,80.94,80.85,18.5468]
[1647015405223,14.42,80.94,80.851,58.70745536]
[1647015405417,23.9271,80.949,80.851,61.75193493]
[1647015405617,23.9271,80.949,80.852,3.04447957]
[1647015405817,25.47894381,80.95,80.852,3.04447957]
[1647015406019,14.42,80.96,80.87,18.5376]
[1647015406219,25.47894381,80.965,80.87,18.5376]
[1647015406220,25.47894381,80.965,80.871,175.50755207]
[1647015406421,26.37833677,80.973,80.871,178.55203164]
[1647015406620,25.47894381,80.972,80.872,3.04447957]
[1647015407220,18.5333,80.97,80.9,18.5309]
[1647015407421,195.96,80.969,80.872,3.04447957]
[1647015407621,221.43894381,80.969,80.872,3.04447957]
[1647015407825,265.15011201,80.969,80.814,4.7436838]
[1647015408021,195.96,80.967,80.831,72.8502]
[1647015408223,195.96,80.967,80.851,51.22225498]
[1647015408524,195.96,80.965,80.86,18.5447]
[1647015408923,122.5,80.963,80.86,18.5447]
[1647015409121,14.42,80.96,80.86,18.5447]
[1647015409321,14.42,80.96,80.861,3.04447957]
[1647015409523,3.04447957,80.959,80.861,3.04447957]
[1647015409823,14.42,80.96,80.891,47.28631865]
[1647015410028,3.04447957,80.976,80.891,47.28631865]
[1647015410222,25.47894381,80.986,80.892,3.04447957]
[1647015410623,14.42,80.99,80.892,3.04447957]
[1647015411123,25.47894381,80.989,80.91,18.5275]
[1647015411325,14.42,80.99,80.911,58.17685936]
[1647015411525,14.42,80.99,80.911,61.22133893]
[1647015411826,24.4721,80.997,80.912,3.04447957]
[1647015412027,24.4721,80.997,80.93,18.5247]
[1647015412228,73.46,81.018,80.931,65.04280035]
[1647015412424,14.42,81.02,80.931,68.08727992]
[1647015412625,14.42,81.02,80.931,72.90727992]
[1647015412826,26.37833677,81.033,80.932,3.29447957]
[1647015413030,26.37833677,81.033,80.933,4.35073939]
[1647015413226,14.42,81.05,80.933,4.35073939]
[1647015413227,40.79833677,81.05,80.934,0.25]
[1647015413626,40.79833677,81.05,80.934,3.29447957]
[1647015413828,40.79833677,81.05,80.935,3.04447957]
[1647015414230,40.79833677,81.05,80.95,18.5217]
[1647015414427,40.79833677,81.05,80.951,59.29657021]
[1647015414625,40.79833677,81.05,80.951,62.34104978]
[1647015414824,40.79833677,81.05,80.952,3.04447957]
[1647015415226,14.42,81.05,80.952,3.04447957]
[1647015415627,14.42,81.05,80.98,18.5154]
[1647015415825,14.42,81.05,80.981,53.4758586]
[1647015416025,18.5126,81.07,80.981,53.4758586]
[1647015416228,32.9326,81.07,80.981,53.4758586]
[1647015416427,40.66668863,81.078,80.981,53.4758586]
[1647015416635,14.28835186,81.09,80.99,18.5128]
[1647015416829,14.42,81.09,80.99,18.5128]
[1647015417027,14.42,81.09,80.991,3.04447957]
[1647015417426,46.86691048,81.109,80.991,3.04447957]
[1647015417628,22.08161048,81.091,80.983,4.63950396]
[1647015417828,3.04447957,81.089,80.981,56.52033817]
[1647015418031,3.04447957,81.089,80.981,53.4758586]
[1647015418731,3.04447957,81.089,80.982,3.04447957]
[1647015418931,3.04447957,81.089,80.982,7.95447957]
[1647015419133,49.08363677,81.109,80.982,7.95447957]
[1647015419134,3.04447957,81.099,80.991,127.20418583]
[1647015419331,3.04447957,81.117,80.992,0.25]
[1647015419532,3.04447957,81.117,80.992,3.29447957]
[1647015419732,14.42,81.12,80.992,3.29447957]
[1647015419935,992.82389122,80.84,75.333,0.51016234]
[1647015420135,5.0,81.119,81.061,86.325578]
[1647015420136,73.46,81.115,81.061,86.325578]
[1647015420333,14.42,81.11,80.963,25.75951289]
[1647015420533,14.42,81.11,80.987,4.33722482]
[1647015420858,14.42,81.11,80.986,32.22477699]
[1647015421034,64.49425003,81.109,80.986,32.22477699]
[1647015421233,98.98048076,81.109,80.986,32.22477699]
[1647015421433,62.6902109,81.089,80.986,32.22477699]
[1647015421634,62.6902109,81.089,80.987,5.08449888]
[1647015421835,3.04447957,81.088,80.987,8.12897845]
[1647015422034,3.04447957,81.088,80.988,3.04447957]
[1647015422636,62.6902109,81.089,80.988,3.04447957]
[1647015422637,62.6902109,81.089,80.99,18.5096]
[1647015422840,71.0866,81.107,80.99,32.9296]
[1647015423038,22.8012,81.107,80.991,125.79447957]
[1647015423539,14.42,81.13,80.992,3.04447957]
[1647015423739,14.42,81.13,80.993,0.25]
[1647015423939,63.61760734,81.129,80.993,0.25]
[1647015424142,63.61760734,81.129,81.02,18.4925]
[1647015424339,63.61760734,81.129,81.021,4.60769152]
[1647015424540,63.61760734,81.129,81.021,7.65217109]
[1647015424742,63.61760734,81.129,81.022,3.04447957]
[1647015424941,0.25,81.128,81.023,5.15236978]
[1647015425141,31.39881783,81.128,81.03,18.4997]
[1647015425341,31.39881783,81.128,81.031,0.25]
[1647015425544,31.14881783,81.127,81.031,0.25]
[1647015425741,31.14881783,81.127,81.031,3.29447957]
[1647015425942,31.14881783,81.127,81.032,3.04447957]
[1647015427548,125.54447957,81.126,80.992,3.04447957]
[1647015427743,122.5,81.124,80.987,149.8715]
[1647015427942,14.42,81.11,80.987,149.8715]
[1647015428145,110.45038715,81.109,80.988,3.04447957]
[1647015428368,18.508,81.1,80.99,18.508]
[1647015428573,59.38540931,81.089,80.99,18.508]
[1647015428771,59.38540931,81.089,80.991,3.04447957]
[1647015429472,59.38540931,81.089,81.0,18.5068]
[1647015429874,59.38540931,81.089,81.001,3.04447957]
[1647015430673,59.38540931,81.089,81.01,18.5044]
[1647015431272,59.38540931,81.089,81.01,21.54887957]
[1647015432277,59.38540931,81.089,81.011,0.25]
[1647015432475,59.38540931,81.089,81.03,18.5006]
[1647015432875,59.38540931,81.089,81.031,3.04447957]
[1647015433478,0.25,81.088,81.04,18.4956]
[1647015433679,0.25,81.108,81.04,18.4956]
[1647015433877,0.25,81.108,81.041,3.04447957]
[1647015434077,14.42,81.13,81.041,3.04447957]
[1647015434377,63.72422645,81.129,81.041,3.04447957]
[1647015435179,63.72422645,81.129,81.05,18.4958]
[1647015435384,63.47422645,81.129,81.05,18.4958]
[1647015435583,14.42,81.16,81.051,3.29447957]
[1647015435782,31.14881783,81.161,81.052,122.5]
[1647015435981,1.63140746,81.179,81.052,122.5]
[1647015435982,49.03920746,81.181,81.052,3.04447957]
[1647015436289,47.4078,81.181,81.053,3.04447957]
[1647015436482,18.4946,81.15,81.053,3.04447957]
[1647015436682,32.9146,81.15,81.053,3.04447957]
[1647015436883,0.25,81.149,81.053,3.04447957]
[1647015437081,0.25,81.149,81.053,21.43807957]
[1647015437282,0.25,81.149,81.06,18.4942]
[1647015438086,0.25,81.149,81.061,3.04447957]
[1647015438390,0.25,81.149,81.07,18.4925]
[1647015439185,0.25,81.149,81.07,21.53697957]
[1647015439583,0.25,81.149,81.06,3.04447957]
[1647015440784,49.57815855,81.139,81.06,21.53997957]
[1647015440986,14.42,81.13,81.06,21.53997957]
[1647015441185,122.75,81.129,81.061,3.04447957]
[1647015441391,122.75,81.129,81.05,5.04]
[1647015441786,0.25,81.129,81.05,5.04]
[1647015441988,0.25,81.129,81.051,3.04447957]
[1647015442193,0.25,81.138,81.051,3.04447957]
[1647015443191,122.75,81.138,81.051,3.04447957]
[1647015443390,196.21,81.138,81.05,5.04]
[1647015444088,225.41945504,81.138,81.05,5.04]
[1647015444290,195.96,81.129,81.05,5.04]
[1647015444490,122.5,81.117,81.05,5.04]
[1647015444690,127.95418263,81.118,81.05,5.04]
[1647015445691,122.5,81.117,81.05,5.04]
[1647015445892,122.5,81.109,81.05,5.04]
[1647015446092,14.42,81.1,81.05,5.04]
[1647015446292,64.74676867,81.099,81.019,3.04447957]
[1647015447695,64.74676867,81.099,81.03,18.5029]
[1647015448095,64.74676867,81.099,81.031,3.04447957]
[1647015448295,0.25,81.098,81.031,3.04447957]
[1647015448796,0.25,81.098,81.051,5.18391102]
[1647015448999,1.63140746,81.134,81.021,122.5]
[1647015449197,1.63140746,81.134,81.052,3.04447957]
[1647015449596,57.40487513,81.133,81.052,3.04447957]
[1647015450001,57.40487513,81.133,81.06,18.4967]
[1647015450401,57.40487513,81.133,81.061,3.04447957]
[1647015450802,0.25,81.132,81.061,3.04447957]
[1647015451003,18.4978,81.13,81.061,3.04447957]
[1647015451802,18.4978,81.13,81.051,18.8755]
[1647015452105,18.4978,81.13,81.06,18.4965]
[1647015452702,57.40487513,81.133,81.06,18.4965]
[1647015453103,57.40487513,81.133,81.061,3.04447957]
[1647015453702,59.03628259,81.133,81.061,3.04447957]
[1647015454102,18.4972,81.13,81.05,18.4992]
[1647015454305,20.12860746,81.13,81.05,18.4992]
[1647015454504,1.63140746,81.129,81.05,18.4992]
[1647015454930,1.63140746,81.128,81.05,18.4992]
[1647015455530,0.25,81.127,81.05,18.4992]
[1647015455731,0.25,81.127,81.05,21.54367957]
[1647015456131,1.63140746,81.131,81.05,21.54367957]
[1647015456430,0.25,81.13,81.05,21.54367957]
[1647015457233,1.88140746,81.13,81.05,21.54367957]
[1647015457431,0.25,81.13,81.05,21.54367957]
[1647015457632,20.37800746,81.13,81.05,21.54367957]
[1647015458933,1.63140746,81.127,81.05,21.54367957]
[1647015459136,1.63140746,81.122,81.05,21.54367957]
[1647015460038,18.4988,81.12,81.05,21.54367957]
[1647015460235,59.05792689,81.119,81.05,21.54367957]
[1647015460534,59.05792689,81.119,81.05,18.4992]
[1647015460735,14.42,81.11,81.05,18.4992]
[1647015461036,14.42,81.11,81.04,18.3018]
[1647015461436,1.63140746,81.108,81.04,18.3018]
[1647015461838,122.5,81.105,81.013,3.04447957]
[1647015462035,1.63140746,81.101,81.013,3.04447957]
[1647015462237,18.508,81.08,81.013,3.04447957]
[1647015462436,47.8389,81.088,81.013,3.04447957]
[1647015462836,0.25,81.087,81.02,18.5068]
[1647015463437,0.25,81.087,81.021,3.04447957]
[1647015464137,0.25,81.087,81.03,18.504]
[1647015464736,0.25,81.087,81.031,3.04447957]
[1647015465740,0.25,81.087,81.04,18.5027]
[1647015465938,0.25,81.087,81.031,3.04447957]
[1647015466339,0.25,81.087,81.017,3.04447957]
[1647015468142,0.25,81.087,81.03,18.5047]
[1647015468541,0.25,81.087,81.031,3.04447957]
[1647015469243,0.25,81.087,81.04,18.5026]
[1647015470045,0.25,81.087,81.021,3.04447957]
[1647015471447,0.25,81.087,81.03,18.5056]
[1647015472446,18.5071,81.08,81.021,3.04447957]
[1647015472650,18.5071,81.08,81.005,3.04447957]
[1647015472651,32.9271,81.08,81.005,3.04447957]
[1647015473246,122.5,81.079,80.978,3.04447957]
[1647015473647,122.5,81.077,80.978,3.04447957]
[1647015473849,18.5125,81.06,80.99,18.5141]
[1647015474049,49.68404362,81.059,80.99,18.5141]
[1647015474452,49.68404362,81.059,80.99,21.55857957]
[1647015476852,0.25,81.059,80.99,21.55857957]
[1647015477057,14.42,81.08,81.01,18.5017]
[1647015477253,24.6807,81.088,81.01,18.5017]
[1647015477453,24.6807,81.088,81.011,3.04447957]
[1647015477853,56.30152099,81.087,81.011,3.04447957]
[1647015478254,56.30152099,81.087,81.03,18.5006]
[1647015478654,56.30152099,81.087,81.031,3.04447957]
[1647015479053,56.30152099,81.087,81.022,3.04447957]
[1647015479455,56.30152099,81.087,81.03,18.5058]
[1647015480655,0.25,81.086,81.031,3.04447957]
[1647015480956,0.25,81.086,81.04,18.5021]
[1647015482558,0.25,81.086,81.03,18.5058]
[1647015483960,18.5063,81.08,81.02,18.5085]
[1647015484363,0.25,81.079,81.02,18.5085]
[1647015486066,18.5084,81.07,81.02,18.5085]
[1647015486465,61.80411272,81.069,81.02,18.5085]
[1647015489179,0.25,81.068,81.02,18.5085]
[1647015496592,0.25,81.068,81.01,18.5106]
[1647015498194,18.511,81.06,81.01,18.5106]
[1647015498594,18.511,81.06,81.001,18.6678]
[1647015499296,18.511,81.06,81.0,18.5129]
[1647015499498,18.511,81.06,80.957,5.34367675]
[1647015499499,122.5,81.039,80.98,3.04447957]
[1647015499696,122.5,81.037,80.98,3.04447957]
[1647015499897,122.5,81.037,80.927,12.89286749]
[1647015500196,122.5,81.035,80.948,18.5451]
[1647015500398,122.5,81.029,80.948,18.5451]
[1647015500798,18.5221,81.02,80.96,18.5226]
[1647015500997,18.5221,81.02,80.948,18.5451]
[1647015500998,122.5,81.018,80.928,24.1406]
[1647015501200,195.96,81.018,80.928,24.1406]
[1647015501399,3.04447957,81.017,80.928,24.1406]
[1647015501698,3.04447957,81.017,80.924,22.709]
[1647015501699,122.5,81.016,80.924,22.709]
[1647015501905,141.00035186,81.016,80.924,22.709]
[1647015502098,18.5286,81.0,80.94,18.527]
[1647015502298,53.79924992,80.999,80.94,18.527]
[1647015502698,122.5,80.998,80.912,24.1406]
[1647015502898,53.79924992,80.999,80.912,24.1406]
[1647015503499,24.2852,80.998,80.912,24.1406]
[1647015503699,122.5,80.997,80.912,24.1406]
[1647015504100,18.529,80.99,80.93,18.529]
[1647015504901,24.2852,80.998,80.93,18.529]
[1647015505708,0.25,80.997,80.93,18.529]
[1647015506103,18.5272,80.99,80.93,18.529]
[1647015512217,122.5,80.989,80.93,18.529]
[1647015512418,18.5349,80.97,80.896,24.6695]
[1647015512619,50.88736822,80.969,80.876,42.7555]
[1647015512819,196.21,80.968,80.876,18.4415]
[1647015513021,196.21,80.968,80.86,572.83786523]
[1647015513022,196.21,80.968,80.866,12.90504414]
[1647015513219,195.96,80.966,80.86,540.57929412]
[1647015513423,195.96,80.966,80.86,559.12329412]
[1647015513619,195.96,80.949,80.86,18.544]
[1647015513819,14.42,80.94,80.86,18.544]
[1647015514220,122.5,80.939,80.86,18.544]
[1647015514423,122.5,80.927,80.853,18.9234]
[1647015514636,18.5474,80.91,80.853,18.9234]
[1647015514837,55.37463696,80.909,80.853,18.9234]
[1647015515436,55.37463696,80.909,80.86,18.5447]
[1647015516441,0.25,80.908,80.86,18.5447]
[1647015518147,67.06946878,81.002,80.86,18.5447]
[1647015518442,46.343,80.959,80.862,122.5]
[1647015518647,46.343,80.959,80.89,18.53]
[1647015519040,47.40876824,80.958,80.89,18.53]
[1647015521345,0.25,80.957,80.89,37.1474]
[1647015527147,122.75,80.957,80.88,18.5399]
[1647015527352,171.0429,80.957,80.878,18.5582]
[1647015527948,171.0429,80.957,80.854,46.6253]
[1647015528148,122.5,80.947,80.846,3.04447957]
[1647015528351,122.5,80.939,80.83,61.8189]
[1647015528648,122.5,80.937,80.831,46.6253]
[1647015529048,3.04447957,80.936,80.831,46.6253]
[1647015529250,122.5,80.919,80.85,18.5471]
[1647015529450,122.5,80.919,80.831,46.6253]
[1647015529651,122.5,80.917,80.831,46.6253]
[1647015530252,122.5,80.917,80.801,24.5122]
[1647015530253,122.5,80.907,80.801,24.5122]
[1647015530452,60.11344672,80.898,80.804,48.3408]
[1647015530651,122.5,80.897,80.804,48.3408]
[1647015530849,125.54447957,80.897,80.804,48.3408]
[1647015531049,122.5,80.895,80.804,48.3408]
[1647015531249,122.5,80.889,80.805,3.04447957]
[1647015531453,18.5558,80.88,80.81,18.5564]
[1647015531650,63.30319716,80.879,80.81,18.5564]
[1647015532252,87.18099716,80.879,80.81,21.60087957]
[1647015532652,87.18099716,80.879,80.811,24.07494303]
[1647015532851,14.42,80.91,80.83,18.5456]
[1647015533054,48.5446,80.935,80.83,18.5456]
[1647015533252,48.5446,80.935,80.832,122.5]
[1647015533653,48.5446,80.935,80.834,122.5]
[1647015533854,59.40728888,80.934,80.835,0.25]
[1647015534056,59.40728888,80.934,80.86,18.5376]
[1647015534256,46.4116,80.964,80.861,127.307736]
[1647015534456,46.4116,80.964,80.862,0.25]
[1647015534856,46.4116,80.964,80.864,122.5]
[1647015535055,32.9458,81.0,80.865,0.25]
[1647015535256,94.95592589,80.999,80.866,122.5]
[1647015535454,94.95592589,80.999,80.882,4.93900664]
[1647015535655,94.95592589,80.999,80.884,122.5]
[1647015535954,94.95592589,80.999,80.885,0.25]
[1647015536253,94.95592589,80.999,80.886,3.04447957]
[1647015536455,48.54432589,80.999,80.911,122.5]
[1647015536659,48.54432589,80.999,80.912,4.41279106]
[1647015536856,48.54432589,80.999,80.913,122.5]
[1647015537256,48.54432589,80.999,80.914,0.25]
[1647015537555,48.54432589,80.999,80.93,18.5207]
[1647015537955,48.54432589,80.999,80.931,3.04447957]
[1647015538555,48.54432589,80.999,80.95,18.5223]
[1647015538756,48.54432589,80.999,80.931,3.04447957]
[1647015538959,48.54432589,80.999,80.915,3.04447957]
[1647015539557,0.25,80.998,80.915,3.04447957]
[1647015539757,24.2482,80.998,80.915,3.04447957]
[1647015540158,24.2482,80.998,80.92,18.5295]
[1647015540556,24.2482,80.998,80.921,3.04447957]
[1647015541861,24.2482,80.998,80.94,18.5262]
[1647015542058,24.2482,80.998,80.921,3.04447957]
[1647015542059,18.5284,80.99,80.921,3.04447957]
[1647015542458,122.5,80.989,80.921,3.04447957]
[1647015542660,122.5,80.989,80.909,3.04447957]
[1647015542862,122.5,80.985,80.909,3.04447957]
[1647015544160,18.5315,80.98,80.91,18.5317]
[1647015544562,122.5,80.969,80.91,3.04447957]
[1647015544862,59.89442319,80.968,80.897,3.04447957]
[1647015545261,0.25,80.967,80.91,18.5334]
[1647015545661,0.25,80.967,80.911,3.04447957]
[1647015545860,24.0933,80.988,80.911,3.04447957]
[1647015546061,0.25,80.987,80.911,3.04447957]
[1647015546262,0.25,80.987,80.93,18.5236]
[1647015546662,61.20999725,80.987,80.93,21.56807957]
[1647015551066,122.0,80.986,80.915,3.04447957]
[1647015551267,22.602,80.986,80.915,3.04447957]
[1647015552770,18.5305,80.98,80.915,3.04447957]
[1647015552969,18.5305,80.98,80.9,3.04447957]
[1647015552970,122.5,80.979,80.9,3.04447957]
[1647015553169,122.5,80.973,80.9,3.04447957]
[1647015553369,122.5,80.965,80.9,3.04447957]
[1647015553770,122.5,80.965,80.866,46.3972]
[1647015553771,73.46,80.948,80.875,3.04447957]
[1647015553972,18.5433,80.93,80.87,18.5414]
[1647015554169,51.75098013,80.946,80.866,18.2058]
[1647015554370,51.75098013,80.946,80.867,3.04447957]
[1647015554872,14.42,80.97,80.868,24.07494303]
[1647015555078,24.1725,80.972,80.881,122.5]
[1647015555277,24.1725,80.972,80.882,0.25]
[1647015555479,24.1725,80.972,80.883,122.5]
[1647015555679,36.9888,81.01,80.884,0.25]
[1647015555904,47.88874136,80.987,80.885,122.5]
[1647015556103,47.88874136,80.987,80.9,18.5234]
[1647015556301,47.88874136,80.987,80.901,126.56394304]
[1647015556802,47.88874136,80.987,80.902,3.04447957]
[1647015557705,47.88874136,80.987,80.92,18.5249]
[1647015558502,0.25,80.986,80.92,18.5249]
[1647015558704,0.25,80.986,80.884,22.958]
[1647015558705,195.96,80.978,80.891,3.04447957]
[1647015558907,14.42,80.97,80.891,3.04447957]
[1647015559105,52.78051277,80.969,80.891,3.04447957]
[1647015559813,122.5,80.959,80.881,3.04447957]
[1647015560008,65.52811626,80.949,80.881,3.04447957]
[1647015560210,65.52811626,80.949,80.853,24.8605]
[1647015560211,14.42,80.94,80.868,3.04447957]
[1647015561009,32.9606,80.94,80.88,18.5399]
[1647015561210,32.9606,80.94,80.87,61.7929]
[1647015561412,14.42,80.94,80.868,3.04447957]
[1647015561710,14.42,80.94,80.884,3.04447957]
[1647015562112,0.25,80.939,80.89,18.5381]
[1647015562513,48.1123,80.948,80.891,3.04447957]
[1647015562715,0.25,80.947,80.891,3.04447957]
[1647015563017,0.25,80.947,80.9,18.532]
[1647015563516,48.1123,80.948,80.9,18.532]
[1647015563716,48.1123,80.948,80.881,3.04447957]
[1647015564117,48.1123,80.948,80.89,18.5385]
[1647015564819,0.25,80.947,80.89,18.5385]
[1647015566218,0.25,80.947,80.88,61.7879]
[1647015566219,0.25,80.947,80.88,18.5409]
[1647015566420,0.25,80.947,80.868,24.9042]
[1647015567118,0.25,80.947,80.869,3.04447957]
[1647015567324,0.25,80.947,80.87,18.5417]
[1647015568119,0.25,80.947,80.871,3.04447957]
[1647015568321,18.5388,80.94,80.871,3.04447957]
[1647015568522,32.9588,80.94,80.871,3.04447957]
[1647015568719,32.9588,80.94,80.868,24.9042]
[1647015569320,18.5408,80.93,80.86,61.8039]
[1647015569522,48.02518283,80.929,80.847,3.04447957]
[1647015569721,72.97468283,80.929,80.847,3.04447957]
[1647015570322,72.97468283,80.929,80.86,18.5453]
[1647015572725,72.97468283,80.929,80.86,37.3345]
[1647015572925,72.97468283,80.929,80.88,18.5375]
[1647015575725,0.25,80.928,80.88,18.5375]
[1647015577233,0.25,80.928,80.87,18.5432]
[1647015577425,0.25,80.928,80.827,18.54010803]
[1647015577625,0.25,80.928,80.831,3.04447957]
[1647015579227,18.5432,80.92,80.86,18.5448]
[1647015579427,14.42,80.91,80.86,18.5448]
[1647015579628,14.42,80.91,80.84,86.6956]
[1647015579828,23.5273,80.909,80.84,86.6956]
[1647015580128,18.5474,80.9,80.82,64.87437957]
[1647015580331,14.42,80.89,80.82,61.8299]
[1647015580531,23.5273,80.889,80.807,12.91450275]
[1647015580730,122.5,80.888,80.807,12.91450275]
[1647015580940,195.96,80.888,80.796,23.1968]
[1647015581130,3.04447957,80.887,80.781,3.04447957]
[1647015581333,73.46,80.879,80.803,18.4704]
[1647015581531,63.40679979,80.869,80.803,18.4704]
[1647015581733,122.5,80.868,80.803,18.4704]
[1647015581933,63.40679979,80.869,80.803,18.4704]
[1647015582158,63.40679979,80.869,80.781,3.04447957]
[1647015582332,18.557,80.86,80.81,18.5572]
[1647015582732,32.977,80.86,80.81,18.5572]
[1647015582936,14.42,80.86,80.81,18.5572]
[1647015583136,0.25,80.859,80.81,18.5572]
[1647015583336,23.5273,80.868,80.81,18.5572]
[1647015583337,0.25,80.867,80.81,18.5572]